[Event "*** SCC Grand Prix: Titled Tuesday Blitz"]
[Site "Chess.com"]
[Date "2020.10.06"]
[Round "7"]
[White "crescentmoon2411"]
[Black "chessplayer9919"]
[Result "1-0"]
[WhiteElo "2800"]
[BlackElo "2614"]
[TimeControl "180+1"]
[EndTime "11:16:14 PDT"]
[Termination "crescentmoon2411 won by resignation"]

1. d4 {[%clk 0:03:00.9]} 1... Nf6 {[%clk 0:02:57.4]} 2. c4 {[%clk 0:03:00.6]}
2... c5 {[%clk 0:02:57.2]} 3. d5 {[%clk 0:02:59.4]} 3... b5 {[%clk 0:02:57.1]}
4. cxb5 {[%clk 0:02:59.2]} 4... a6 {[%clk 0:02:57.4]} 5. bxa6 {[%clk 0:02:57.3]}
5... g6 {[%clk 0:02:55.8]} 6. Nc3 {[%clk 0:02:57.3]} 6... Bg7 {[%clk 0:02:54.3]}
7. Nf3 {[%clk 0:02:51.2]} 7... O-O {[%clk 0:02:52.9]} 8. e4 {[%clk 0:02:50.3]}
8... Qa5 {[%clk 0:02:50.1]} 9. Bd2 {[%clk 0:02:44.6]} 9... Bxa6 {[%clk
0:02:48.7]} 10. Bxa6 {[%clk 0:02:39.5]} 10... Qxa6 {[%clk 0:02:49.6]} 11. Qe2
{[%clk 0:02:39.4]} 11... d6 {[%clk 0:02:48.6]} 12. Qxa6 {[%clk 0:02:36]} 12...
Nxa6 {[%clk 0:02:49.5]} 13. Ke2 {[%clk 0:02:28.1]} 13... Rfb8 {[%clk 0:02:40.8]}
14. Rab1 {[%clk 0:02:23.4]} 14... Nb4 {[%clk 0:02:36.5]} 15. a3 {[%clk
0:02:23.1]} 15... Nc2 {[%clk 0:02:26.7]} 16. Kd3 {[%clk 0:02:09.1]} 16... Nd4
{[%clk 0:02:25.3]} 17. Be3 {[%clk 0:02:04.8]} 17... Ng4 {[%clk 0:01:54.2]} 18.
Nxd4 {[%clk 0:01:59.5]} 18... cxd4 {[%clk 0:01:19.2]} 19. Bxd4 {[%clk
0:02:00.4]} 19... Bxd4 {[%clk 0:01:19.2]} 20. Kxd4 {[%clk 0:02:00.4]} 20... Nxf2
{[%clk 0:01:20.1]} 21. Rhc1 {[%clk 0:02:00.5]} 21... Rb3 {[%clk 0:01:13.5]} 22.
h3 {[%clk 0:01:55]} 22... Ra4+ {[%clk 0:01:05.1]} 23. Nxa4 {[%clk 0:01:53.3]}
1-0

[Event "*** SCC Grand Prix: Titled Tuesday Blitz"]
[Site "Chess.com"]
[Date "2020.10.06"]
[Round "7"]
[White "RestartingChess"]
[Black "narutosmith"]
[Result "1-0"]
[WhiteElo "2487"]
[BlackElo "2235"]
[TimeControl "180+1"]
[EndTime "11:16:18 PDT"]
[Termination "RestartingChess won on time"]

1. e4 {[%clk 0:03:00.9]} 1... c5 {[%clk 0:02:59.2]} 2. Nf3 {[%clk 0:03:01.3]}
2... Nc6 {[%clk 0:02:58.8]} 3. b4 {[%clk 0:03:01.7]} 3... cxb4 {[%clk
0:02:58.2]} 4. d4 {[%clk 0:03:02.3]} 4... d5 {[%clk 0:02:57.3]} 5. exd5 {[%clk
0:03:03.2]} 5... Qxd5 {[%clk 0:02:57]} 6. c4 {[%clk 0:03:04.1]} 6... bxc3 {[%clk
0:02:47.5]} 7. Nxc3 {[%clk 0:03:04.4]} 7... Qa5 {[%clk 0:02:12.5]} 8. Rb1 {[%clk
0:03:05.3]} 8... Qxc3+ {[%clk 0:02:11.3]} 9. Bd2 {[%clk 0:02:55.7]} 9... Qa3
{[%clk 0:02:05.6]} 10. d5 {[%clk 0:02:56.1]} 10... Nb8 {[%clk 0:01:23.5]} 11.
Bb5+ {[%clk 0:02:47.9]} 11... Bd7 {[%clk 0:01:20.4]} 12. Qc2 {[%clk 0:02:48.2]}
12... Na6 {[%clk 0:00:33.6]} 13. Bxd7+ {[%clk 0:02:41.7]} 13... Kxd7 {[%clk
0:00:32.9]} 14. Rxb7+ {[%clk 0:02:42.4]} 14... Kd8 {[%clk 0:00:29.3]} 15. Ne5
{[%clk 0:02:35.4]} 15... Nh6 {[%clk 0:00:13.6]} 16. Qc6 {[%clk 0:02:31.6]} 16...
Qd6 {[%clk 0:00:08.2]} 17. Rd7+ {[%clk 0:02:31.2]} 1-0

[Event "*** SCC Grand Prix: Titled Tuesday Blitz"]
[Site "Chess.com"]
[Date "2020.10.06"]
[Round "7"]
[White "MasterSonnevanck23"]
[Black "IMAghasiyevKamal"]
[Result "1-0"]
[WhiteElo "2367"]
[BlackElo "2474"]
[TimeControl "180+1"]
[EndTime "11:16:27 PDT"]
[Termination "MasterSonnevanck23 won by resignation"]

1. d4 {[%clk 0:03:00.9]} 1... Nf6 {[%clk 0:02:59.6]} 2. c4 {[%clk 0:03:00.1]}
2... e6 {[%clk 0:03:00.1]} 3. Nf3 {[%clk 0:02:59.5]} 3... d5 {[%clk 0:03:00.7]}
4. Nc3 {[%clk 0:02:58.5]} 4... Be7 {[%clk 0:03:01.2]} 5. e3 {[%clk 0:02:56]}
5... O-O {[%clk 0:03:01.3]} 6. Bd3 {[%clk 0:02:55.7]} 6... a6 {[%clk 0:03:01.2]}
7. b3 {[%clk 0:02:55.2]} 7... c5 {[%clk 0:03:00.4]} 8. O-O {[%clk 0:02:54.5]}
8... cxd4 {[%clk 0:02:57.4]} 9. exd4 {[%clk 0:02:53.6]} 9... dxc4 {[%clk
0:02:56.2]} 10. bxc4 {[%clk 0:02:52.1]} 10... Nc6 {[%clk 0:02:55.5]} 11. Bb2
{[%clk 0:02:50.4]} 11... b6 {[%clk 0:02:55.5]} 12. Qe2 {[%clk 0:02:43.5]} 12...
Bb7 {[%clk 0:02:55.3]} 13. Rad1 {[%clk 0:02:42.8]} 13... Rc8 {[%clk 0:02:53.7]}
14. d5 {[%clk 0:02:33.8]} 14... exd5 {[%clk 0:02:52.8]} 15. cxd5 {[%clk
0:02:32.3]} 15... Nb4 {[%clk 0:02:52]} 16. Bb1 {[%clk 0:02:15.7]} 16... a5
{[%clk 0:02:51.5]} 17. Ne4 {[%clk 0:01:58.5]} 17... Re8 {[%clk 0:02:48.9]} 18.
d6 {[%clk 0:01:45.1]} 18... Nxe4 {[%clk 0:02:45]} 19. d7 {[%clk 0:01:38.5]}
19... Bc5 {[%clk 0:02:33.3]} 20. dxe8=Q+ {[%clk 0:01:28.7]} 20... Qxe8 {[%clk
0:02:33.3]} 21. Nd4 {[%clk 0:01:17.7]} 21... Nf6 {[%clk 0:02:25.1]} 22. Qxe8+
{[%clk 0:01:08.8]} 22... Rxe8 {[%clk 0:02:25.2]} 23. Nf5 {[%clk 0:01:08.8]}
23... Nbd5 {[%clk 0:02:21]} 24. Rfe1 {[%clk 0:01:02.8]} 24... Rc8 {[%clk
0:02:19.6]} 25. Bxf6 {[%clk 0:00:57.4]} 25... gxf6 {[%clk 0:02:18.9]} 26. Be4
{[%clk 0:00:54]} 26... Rd8 {[%clk 0:02:13.3]} 27. Bxd5 {[%clk 0:00:53.3]} 27...
Bxd5 {[%clk 0:02:08.2]} 28. Rxd5 {[%clk 0:00:52.8]} 28... Rxd5 {[%clk
0:02:07.9]} 29. Re8+ {[%clk 0:00:52.5]} 29... Bf8 {[%clk 0:02:08.1]} 30. Ne7+
{[%clk 0:00:52.4]} 30... Kg7 {[%clk 0:02:09]} 31. Nxd5 {[%clk 0:00:52.5]} 1-0

[Event "*** SCC Grand Prix: Titled Tuesday Blitz"]
[Site "Chess.com"]
[Date "2020.10.06"]
[Round "7"]
[White "kinga2008"]
[Black "Colombiano07"]
[Result "1-0"]
[WhiteElo "2149"]
[BlackElo "2305"]
[TimeControl "180+1"]
[EndTime "11:16:28 PDT"]
[Termination "kinga2008 won by checkmate"]

1. e4 {[%clk 0:02:54.1]} 1... e6 {[%clk 0:03:00]} 2. d4 {[%clk 0:02:48.8]} 2...
d5 {[%clk 0:02:59.4]} 3. Nc3 {[%clk 0:02:34.5]} 3... Nf6 {[%clk 0:02:58.3]} 4.
exd5 {[%clk 0:02:28.6]} 4... exd5 {[%clk 0:02:57.8]} 5. Nf3 {[%clk 0:02:29.3]}
5... c6 {[%clk 0:02:58.2]} 6. Be2 {[%clk 0:02:30.2]} 6... Be7 {[%clk 0:02:58.9]}
7. O-O {[%clk 0:02:31.1]} 7... O-O {[%clk 0:02:59.8]} 8. Bg5 {[%clk 0:02:32]}
8... Bf5 {[%clk 0:03:00.2]} 9. Bxf6 {[%clk 0:02:32.5]} 9... Bxf6 {[%clk
0:03:00.3]} 10. Bd3 {[%clk 0:02:32.5]} 10... Bg6 {[%clk 0:03:00.1]} 11. Re1
{[%clk 0:02:31.6]} 11... Nd7 {[%clk 0:02:59.2]} 12. Ne2 {[%clk 0:02:26.4]} 12...
Qb6 {[%clk 0:02:58.4]} 13. b3 {[%clk 0:02:11.3]} 13... Rfe8 {[%clk 0:02:57.9]}
14. c3 {[%clk 0:02:03.2]} 14... Re7 {[%clk 0:02:48.4]} 15. Nf4 {[%clk
0:01:51.9]} 15... Rae8 {[%clk 0:02:47.5]} 16. Rxe7 {[%clk 0:01:49.2]} 16... Rxe7
{[%clk 0:02:48.4]} 17. Qc2 {[%clk 0:01:47.2]} 17... Nf8 {[%clk 0:02:44.9]} 18.
h4 {[%clk 0:01:43.6]} 18... Qc7 {[%clk 0:02:41.8]} 19. Nxg6 {[%clk 0:01:40.8]}
19... hxg6 {[%clk 0:02:39.5]} 20. h5 {[%clk 0:01:40.4]} 20... gxh5 {[%clk
0:02:38.7]} 21. c4 {[%clk 0:01:35.6]} 21... Qf4 {[%clk 0:02:35.4]} 22. cxd5
{[%clk 0:01:29.2]} 22... Bxd4 {[%clk 0:02:35.1]} 23. Rd1 {[%clk 0:01:23.8]}
23... Bb6 {[%clk 0:02:18.9]} 24. dxc6 {[%clk 0:01:15.7]} 24... Rc7 {[%clk
0:02:14.6]} 25. Be4 {[%clk 0:01:02.4]} 25... h4 {[%clk 0:02:05.7]} 26. Rd8
{[%clk 0:01:01.3]} 26... Rxc6 {[%clk 0:02:02.9]} 27. Bh7+ {[%clk 0:01:00.1]}
27... Kh8 {[%clk 0:01:56.2]} 28. Rxf8# {[%clk 0:01:01]} 1-0

[Event "*** SCC Grand Prix: Titled Tuesday Blitz"]
[Site "Chess.com"]
[Date "2020.10.06"]
[Round "7"]
[White "Carnivoras"]
[Black "KarstenHansch"]
[Result "1-0"]
[WhiteElo "2680"]
[BlackElo "2496"]
[TimeControl "180+1"]
[EndTime "11:16:33 PDT"]
[Termination "Carnivoras won by resignation"]

1. d4 {[%clk 0:02:48.3]} 1... d5 {[%clk 0:02:59.9]} 2. Nf3 {[%clk 0:02:49.1]}
2... e6 {[%clk 0:03:00.3]} 3. Bf4 {[%clk 0:02:49.6]} 3... Nf6 {[%clk 0:03:00.6]}
4. e3 {[%clk 0:02:44.9]} 4... Bd6 {[%clk 0:03:01]} 5. Nbd2 {[%clk 0:02:44.7]}
5... b6 {[%clk 0:02:59.3]} 6. Bd3 {[%clk 0:02:44.7]} 6... Ba6 {[%clk 0:02:59.1]}
7. O-O {[%clk 0:02:43.6]} 7... O-O {[%clk 0:02:58]} 8. Ne5 {[%clk 0:02:42]} 8...
Bxd3 {[%clk 0:02:48.8]} 9. cxd3 {[%clk 0:02:42.9]} 9... Nfd7 {[%clk 0:02:48.4]}
10. Rc1 {[%clk 0:02:37.3]} 10... f6 {[%clk 0:02:37.5]} 11. Nc6 {[%clk
0:02:27.2]} 11... Nxc6 {[%clk 0:02:34.1]} 12. Bxd6 {[%clk 0:02:27.8]} 12... cxd6
{[%clk 0:02:32.6]} 13. Rxc6 {[%clk 0:02:28.5]} 13... Nc5 {[%clk 0:01:56]} 14.
dxc5 {[%clk 0:02:11.2]} 14... dxc5 {[%clk 0:01:56.9]} 15. b4 {[%clk 0:01:58.4]}
15... Qd7 {[%clk 0:01:22.4]} 16. b5 {[%clk 0:01:54]} 16... Rfb8 {[%clk
0:01:22.1]} 17. Qg4 {[%clk 0:01:51.6]} 17... f5 {[%clk 0:01:20.9]} 18. Qf4
{[%clk 0:01:51.7]} 18... Rb7 {[%clk 0:01:15.3]} 19. Nf3 {[%clk 0:01:50.5]} 19...
a6 {[%clk 0:01:14.2]} 20. a4 {[%clk 0:01:44.4]} 20... axb5 {[%clk 0:01:10.3]}
21. axb5 {[%clk 0:01:45.3]} 21... Ra5 {[%clk 0:01:10.5]} 22. Qe5 {[%clk
0:01:42.7]} 22... Rxb5 {[%clk 0:01:04.6]} 23. Rxe6 {[%clk 0:01:37.8]} 1-0

[Event "*** SCC Grand Prix: Titled Tuesday Blitz"]
[Site "Chess.com"]
[Date "2020.10.06"]
[Round "7"]
[White "Viaje"]
[Black "26andrej26"]
[Result "0-1"]
[WhiteElo "2387"]
[BlackElo "2541"]
[TimeControl "180+1"]
[EndTime "11:16:37 PDT"]
[Termination "26andrej26 won by resignation"]

1. d4 {[%clk 0:03:00.9]} 1... Nf6 {[%clk 0:03:00.3]} 2. c4 {[%clk 0:03:01]} 2...
g6 {[%clk 0:03:01.2]} 3. Nc3 {[%clk 0:03:00.5]} 3... Bg7 {[%clk 0:03:02.1]} 4.
e4 {[%clk 0:03:00.4]} 4... d6 {[%clk 0:03:03]} 5. Be2 {[%clk 0:03:00.5]} 5...
O-O {[%clk 0:03:03.9]} 6. Nf3 {[%clk 0:03:00.7]} 6... e5 {[%clk 0:03:04.5]} 7.
O-O {[%clk 0:03:00.8]} 7... Nc6 {[%clk 0:03:04.1]} 8. d5 {[%clk 0:03:00.8]} 8...
Ne7 {[%clk 0:03:04]} 9. Ne1 {[%clk 0:03:01.1]} 9... Nd7 {[%clk 0:03:03.6]} 10.
f3 {[%clk 0:03:01.6]} 10... f5 {[%clk 0:03:03.9]} 11. g4 {[%clk 0:03:02]} 11...
Kh8 {[%clk 0:03:03.6]} 12. g5 {[%clk 0:02:58.2]} 12... Ng8 {[%clk 0:03:01.1]}
13. Kg2 {[%clk 0:02:54.7]} 13... h6 {[%clk 0:02:58.5]} 14. h4 {[%clk 0:02:54.1]}
14... f4 {[%clk 0:02:57.4]} 15. Nd3 {[%clk 0:02:53.5]} 15... hxg5 {[%clk
0:02:56]} 16. Rh1 {[%clk 0:02:50.9]} 16... gxh4 {[%clk 0:02:54.3]} 17. Qg1
{[%clk 0:02:48]} 17... g5 {[%clk 0:02:54.3]} 18. Kf1 {[%clk 0:02:46.5]} 18...
Nh6 {[%clk 0:02:53]} 19. Bd2 {[%clk 0:02:41.2]} 19... Rg8 {[%clk 0:02:52.4]} 20.
c5 {[%clk 0:02:37.9]} 20... Bf8 {[%clk 0:02:52.1]} 21. cxd6 {[%clk 0:02:35]}
21... Bxd6 {[%clk 0:02:50.6]} 22. Nb5 {[%clk 0:02:26.8]} 22... Nf6 {[%clk
0:02:50.3]} 23. Nxd6 {[%clk 0:02:25.5]} 23... cxd6 {[%clk 0:02:50]} 24. Rc1
{[%clk 0:02:18.9]} 24... Nh5 {[%clk 0:02:49.3]} 25. Ke1 {[%clk 0:02:18.2]} 25...
Ng3 {[%clk 0:02:48.8]} 26. Rh2 {[%clk 0:02:17.4]} 26... Rg7 {[%clk 0:02:44]} 27.
Kd1 {[%clk 0:02:01.9]} 27... Kg8 {[%clk 0:02:44.2]} 28. Qe1 {[%clk 0:01:54.9]}
28... g4 {[%clk 0:02:42.1]} 29. fxg4 {[%clk 0:01:51.2]} 29... Nxe2 {[%clk
0:02:38.7]} 30. Rxh4 {[%clk 0:01:46.5]} 30... Nxc1 {[%clk 0:02:25.6]} 31. Kxc1
{[%clk 0:01:45.4]} 31... Nxg4 {[%clk 0:02:21.2]} 32. Qh1 {[%clk 0:01:44.6]}
32... Qc7+ {[%clk 0:02:20]} 33. Kb1 {[%clk 0:01:44]} 33... Rh7 {[%clk
0:02:17.9]} 34. Bc3 {[%clk 0:01:28.8]} 34... Qe7 {[%clk 0:02:15.9]} 35. Rh5
{[%clk 0:01:28.1]} 35... Bd7 {[%clk 0:01:48.5]} 36. a4 {[%clk 0:01:21]} 36...
Rf8 {[%clk 0:01:44.2]} 0-1

[Event "*** SCC Grand Prix: Titled Tuesday Blitz"]
[Site "Chess.com"]
[Date "2020.10.06"]
[Round "7"]
[White "jacky72"]
[Black "PowerThinking2650"]
[Result "0-1"]
[WhiteElo "2561"]
[BlackElo "2404"]
[TimeControl "180+1"]
[EndTime "11:16:58 PDT"]
[Termination "PowerThinking2650 won by checkmate"]

1. d4 {[%clk 0:03:00.9]} 1... Nf6 {[%clk 0:02:59.3]} 2. Nf3 {[%clk 0:03:00.3]}
2... g6 {[%clk 0:02:58.6]} 3. c4 {[%clk 0:02:58.7]} 3... Bg7 {[%clk 0:02:58.6]}
4. Nc3 {[%clk 0:02:58.5]} 4... O-O {[%clk 0:02:58.5]} 5. e4 {[%clk 0:02:58.1]}
5... d6 {[%clk 0:02:57.9]} 6. Be2 {[%clk 0:02:58.3]} 6... e5 {[%clk 0:02:57.9]}
7. d5 {[%clk 0:02:57.5]} 7... a5 {[%clk 0:02:57.7]} 8. Be3 {[%clk 0:02:57]} 8...
Ng4 {[%clk 0:02:56.4]} 9. Bg5 {[%clk 0:02:55.7]} 9... f6 {[%clk 0:02:53]} 10.
Bd2 {[%clk 0:02:55.7]} 10... f5 {[%clk 0:02:52.9]} 11. O-O {[%clk 0:02:51.1]}
11... f4 {[%clk 0:02:49.1]} 12. Ne1 {[%clk 0:02:45.5]} 12... Nf6 {[%clk
0:02:46.9]} 13. f3 {[%clk 0:02:45.1]} 13... g5 {[%clk 0:02:41.2]} 14. Nd3 {[%clk
0:02:44.9]} 14... h5 {[%clk 0:02:37.8]} 15. c5 {[%clk 0:02:42.1]} 15... g4
{[%clk 0:02:29.8]} 16. cxd6 {[%clk 0:02:41.3]} 16... cxd6 {[%clk 0:02:26.4]} 17.
Rc1 {[%clk 0:02:38.9]} 17... Na6 {[%clk 0:02:09.9]} 18. a4 {[%clk 0:02:34.1]}
18... Bh6 {[%clk 0:01:59.4]} 19. Nb5 {[%clk 0:02:33.3]} 19... Kh7 {[%clk
0:01:55.5]} 20. Qe1 {[%clk 0:02:31.7]} 20... Rg8 {[%clk 0:01:48.9]} 21. Bxa5
{[%clk 0:02:30.5]} 21... b6 {[%clk 0:01:43.1]} 22. Bb4 {[%clk 0:02:29.6]} 22...
g3 {[%clk 0:01:33.4]} 23. Bxd6 {[%clk 0:02:27]} 23... Nxe4 {[%clk 0:01:27.4]}
24. fxe4 {[%clk 0:02:21.8]} 24... Qh4 {[%clk 0:01:23.3]} 25. h3 {[%clk
0:02:19.3]} 25... Bxh3 {[%clk 0:01:20.2]} 26. Be7 {[%clk 0:01:53.8]} 26... Bg5
{[%clk 0:01:09.3]} 27. Bxg5 {[%clk 0:01:51.7]} 27... Rxg5 {[%clk 0:01:08.9]} 28.
Rxf4 {[%clk 0:01:41.8]} 28... exf4 {[%clk 0:01:04.9]} 29. Qf1 {[%clk 0:01:41.9]}
29... Bg4 {[%clk 0:00:53.7]} 30. Qxf4 {[%clk 0:01:37.5]} 30... Qh2+ {[%clk
0:00:52.3]} 31. Kf1 {[%clk 0:01:38.1]} 31... Qh1# {[%clk 0:00:52.6]} 0-1

[Event "*** SCC Grand Prix: Titled Tuesday Blitz"]
[Site "Chess.com"]
[Date "2020.10.06"]
[Round "7"]
[White "vinniethepooh"]
[Black "Forantes"]
[Result "1-0"]
[WhiteElo "2569"]
[BlackElo "2423"]
[TimeControl "180+1"]
[EndTime "11:16:59 PDT"]
[Termination "vinniethepooh won by resignation"]

1. d4 {[%clk 0:03:00.9]} 1... Nf6 {[%clk 0:02:58.2]} 2. c4 {[%clk 0:03:01.1]}
2... g6 {[%clk 0:02:58.6]} 3. Nc3 {[%clk 0:03:01.5]} 3... d5 {[%clk 0:02:58.8]}
4. cxd5 {[%clk 0:03:00.8]} 4... Nxd5 {[%clk 0:02:59.7]} 5. Bd2 {[%clk
0:03:01.5]} 5... Bg7 {[%clk 0:02:58.9]} 6. e4 {[%clk 0:03:01.9]} 6... Nb6 {[%clk
0:02:59.4]} 7. Be3 {[%clk 0:03:01.7]} 7... O-O {[%clk 0:02:59.9]} 8. Bb5 {[%clk
0:03:01.6]} 8... Nc6 {[%clk 0:02:50.7]} 9. Nge2 {[%clk 0:02:59.8]} 9... e5
{[%clk 0:02:39.3]} 10. d5 {[%clk 0:02:55.1]} 10... Ne7 {[%clk 0:02:38.3]} 11.
O-O {[%clk 0:02:50.9]} 11... f5 {[%clk 0:02:27.8]} 12. f3 {[%clk 0:02:48.4]}
12... c6 {[%clk 0:02:04.8]} 13. dxc6 {[%clk 0:02:32.9]} 13... Nxc6 {[%clk
0:02:03.3]} 14. Qb3+ {[%clk 0:02:23.7]} 14... Kh8 {[%clk 0:02:02.9]} 15. Rad1
{[%clk 0:02:23.8]} 15... Qe7 {[%clk 0:01:20]} 16. Nd5 {[%clk 0:02:20.6]} 16...
Nxd5 {[%clk 0:01:19.7]} 17. exd5 {[%clk 0:02:21.5]} 17... Nd8 {[%clk 0:01:08.8]}
18. d6 {[%clk 0:02:17.4]} 18... Qh4 {[%clk 0:00:18.7]} 19. d7 {[%clk 0:02:13.8]}
19... a6 {[%clk 0:00:18.2]} 20. Qc4 {[%clk 0:01:59.9]} 20... axb5 {[%clk
0:00:16.7]} 21. Qxh4 {[%clk 0:01:57.7]} 1-0

[Event "*** SCC Grand Prix: Titled Tuesday Blitz"]
[Site "Chess.com"]
[Date "2020.10.06"]
[Round "7"]
[White "amatatanav"]
[Black "SophieNikoladze"]
[Result "0-1"]
[WhiteElo "2374"]
[BlackElo "2282"]
[TimeControl "180+1"]
[EndTime "11:17:08 PDT"]
[Termination "SophieNikoladze won on time"]

1. e4 {[%clk 0:03:00.9]} 1... d6 {[%clk 0:02:58.6]} 2. d4 {[%clk 0:03:00.6]}
2... Nf6 {[%clk 0:02:57.5]} 3. Nc3 {[%clk 0:03:00.2]} 3... Nbd7 {[%clk
0:02:55.5]} 4. f4 {[%clk 0:02:59.8]} 4... e5 {[%clk 0:02:55.2]} 5. Nf3 {[%clk
0:03:00.1]} 5... Be7 {[%clk 0:02:54.1]} 6. fxe5 {[%clk 0:02:48.7]} 6... dxe5
{[%clk 0:02:53.5]} 7. dxe5 {[%clk 0:02:49.2]} 7... Ng4 {[%clk 0:02:53.7]} 8. e6
{[%clk 0:02:47.1]} 8... fxe6 {[%clk 0:02:53.1]} 9. Nd4 {[%clk 0:02:19.7]} 9...
Nde5 {[%clk 0:02:50.5]} 10. Be2 {[%clk 0:02:08.7]} 10... O-O {[%clk 0:02:45.2]}
11. Nf3 {[%clk 0:01:18.5]} 11... Bh4+ {[%clk 0:02:19.2]} 12. Nxh4 {[%clk
0:00:54.3]} 12... Qxh4+ {[%clk 0:02:17.8]} 13. g3 {[%clk 0:00:54.4]} 13... Qh3
{[%clk 0:02:17.3]} 14. Bf1 {[%clk 0:00:11.4]} 14... Qh5 {[%clk 0:02:12.8]} 15.
Be2 {[%clk 0:00:04]} 15... Qg6 {[%clk 0:02:05.8]} 16. Bf4 {[%clk 0:00:03.4]}
16... Rxf4 {[%clk 0:01:59.9]} 17. gxf4 {[%clk 0:00:03.4]} 17... Ne3 {[%clk
0:01:57]} 18. Qd3 {[%clk 0:00:02.8]} 18... Ng2+ {[%clk 0:01:54.4]} 19. Kd2
{[%clk 0:00:02.8]} 19... Nxd3 {[%clk 0:01:54]} 20. Kxd3 {[%clk 0:00:02.6]} 20...
Nxf4+ {[%clk 0:01:53.6]} 0-1

[Event "*** SCC Grand Prix: Titled Tuesday Blitz"]
[Site "Chess.com"]
[Date "2020.10.06"]
[Round "7"]
[White "Sven_Tica"]
[Black "Onischuk_V"]
[Result "0-1"]
[WhiteElo "2647"]
[BlackElo "2854"]
[TimeControl "180+1"]
[EndTime "11:17:10 PDT"]
[Termination "Onischuk_V won by resignation"]

1. d4 {[%clk 0:03:00.9]} 1... g6 {[%clk 0:02:59.2]} 2. Nf3 {[%clk 0:03:00.6]}
2... Bg7 {[%clk 0:02:59.8]} 3. g3 {[%clk 0:03:01.2]} 3... d6 {[%clk 0:03:00.4]}
4. Bg2 {[%clk 0:03:01.9]} 4... Nf6 {[%clk 0:03:01]} 5. O-O {[%clk 0:03:02.5]}
5... O-O {[%clk 0:03:01.6]} 6. b3 {[%clk 0:03:03.2]} 6... b5 {[%clk 0:03:00.2]}
7. Ne1 {[%clk 0:02:53.5]} 7... c6 {[%clk 0:02:56.2]} 8. a4 {[%clk 0:02:51.4]}
8... b4 {[%clk 0:02:55.5]} 9. Nd3 {[%clk 0:02:50.9]} 9... a5 {[%clk 0:02:54.7]}
10. Nd2 {[%clk 0:02:50.9]} 10... Nd5 {[%clk 0:02:54]} 11. Bb2 {[%clk 0:02:50.8]}
11... Nc3 {[%clk 0:02:53.7]} 12. Bxc3 {[%clk 0:02:48.4]} 12... bxc3 {[%clk
0:02:53.5]} 13. Nf3 {[%clk 0:02:49.1]} 13... Qb6 {[%clk 0:02:50.6]} 14. e3
{[%clk 0:02:38.5]} 14... Ba6 {[%clk 0:02:47.2]} 15. Re1 {[%clk 0:02:32.3]} 15...
c5 {[%clk 0:02:38]} 16. dxc5 {[%clk 0:02:31.3]} 16... dxc5 {[%clk 0:02:38.2]}
17. Nfe5 {[%clk 0:02:30]} 17... Ra7 {[%clk 0:02:37.8]} 18. Qg4 {[%clk
0:02:29.8]} 18... Qc7 {[%clk 0:02:25.3]} 19. Nc4 {[%clk 0:02:28.6]} 19... Nc6
{[%clk 0:02:16.7]} 20. Rad1 {[%clk 0:02:02.6]} 20... h5 {[%clk 0:02:11.8]} 21.
Qe4 {[%clk 0:01:55.6]} 21... Nb4 {[%clk 0:02:11.9]} 22. Nde5 {[%clk 0:01:50.2]}
22... Bb7 {[%clk 0:02:09.4]} 23. Qf4 {[%clk 0:01:41.5]} 23... Bxg2 {[%clk
0:02:08.1]} 24. Kxg2 {[%clk 0:01:42.4]} 24... Nxc2 {[%clk 0:02:08]} 25. Re2
{[%clk 0:01:42]} 25... Nb4 {[%clk 0:02:07.8]} 26. Rd7 {[%clk 0:01:41.1]} 26...
Qb8 {[%clk 0:02:06.5]} 27. Rxa7 {[%clk 0:01:24.8]} 27... Qxa7 {[%clk 0:02:06]}
28. Re1 {[%clk 0:01:19.1]} 28... Qa8+ {[%clk 0:02:03.8]} 29. f3 {[%clk
0:01:19.3]} 29... c2 {[%clk 0:02:00.9]} 30. e4 {[%clk 0:00:56.3]} 30... Qd8
{[%clk 0:01:58.4]} 31. Rc1 {[%clk 0:00:50.1]} 31... Qd1 {[%clk 0:01:57]} 32. h4
{[%clk 0:00:43.1]} 32... Na2 {[%clk 0:01:50]} 0-1

[Event "*** SCC Grand Prix: Titled Tuesday Blitz"]
[Site "Chess.com"]
[Date "2020.10.06"]
[Round "7"]
[White "FMalexhdez"]
[Black "AttackSparrow"]
[Result "0-1"]
[WhiteElo "2265"]
[BlackElo "2388"]
[TimeControl "180+1"]
[EndTime "11:17:19 PDT"]
[Termination "AttackSparrow won by resignation"]

1. e4 {[%clk 0:03:00.9]} 1... c5 {[%clk 0:02:56.2]} 2. Nf3 {[%clk 0:03:00.6]}
2... e6 {[%clk 0:02:56.1]} 3. d4 {[%clk 0:03:01.1]} 3... cxd4 {[%clk 0:02:57]}
4. Nxd4 {[%clk 0:03:01.2]} 4... Nc6 {[%clk 0:02:57.5]} 5. c4 {[%clk 0:03:00.4]}
5... Nf6 {[%clk 0:02:54.9]} 6. Nc3 {[%clk 0:02:59.4]} 6... Bb4 {[%clk
0:02:52.5]} 7. Nxc6 {[%clk 0:02:47.5]} 7... bxc6 {[%clk 0:02:53.4]} 8. Bd3
{[%clk 0:02:42.9]} 8... e5 {[%clk 0:02:50.7]} 9. O-O {[%clk 0:02:40]} 9... a5
{[%clk 0:02:47.2]} 10. Bg5 {[%clk 0:02:22.6]} 10... h6 {[%clk 0:02:43.2]} 11.
Bh4 {[%clk 0:02:22.6]} 11... g5 {[%clk 0:02:29.8]} 12. Bg3 {[%clk 0:02:22.6]}
12... d6 {[%clk 0:02:25.9]} 13. Qc2 {[%clk 0:02:12.8]} 13... Bc5 {[%clk
0:02:17.3]} 14. Na4 {[%clk 0:02:05.4]} 14... Bd4 {[%clk 0:02:15.7]} 15. c5
{[%clk 0:02:03.7]} 15... h5 {[%clk 0:02:08]} 16. h4 {[%clk 0:01:54]} 16... Ng4
{[%clk 0:02:07.6]} 17. cxd6 {[%clk 0:01:22.3]} 17... gxh4 {[%clk 0:02:06.6]} 18.
Bh2 {[%clk 0:01:13.6]} 18... h3 {[%clk 0:01:45.9]} 19. Nc5 {[%clk 0:00:28]}
19... hxg2 {[%clk 0:01:42]} 20. Kxg2 {[%clk 0:00:19]} 20... Nxh2 {[%clk
0:01:41.1]} 21. d7+ {[%clk 0:00:14.1]} 21... Bxd7 {[%clk 0:01:39.5]} 22. Nxd7
{[%clk 0:00:13.4]} 22... Qg5+ {[%clk 0:01:39.4]} 23. Kxh2 {[%clk 0:00:12.8]}
23... Qh4+ {[%clk 0:01:38.8]} 24. Kg2 {[%clk 0:00:12.7]} 24... Rg8+ {[%clk
0:01:38.7]} 0-1